[Event "*** Titled Tuesday Blitz"]
[Site "Chess.com"]
[Date "2019.05.07"]
[Round "5"]
[White "Marcus_Harvey"]
[Black "TastyFrenchFries"]
[Result "1/2-1/2"]
[WhiteElo "2640"]
[BlackElo "2449"]
[TimeControl "180+2"]
[EndTime "14:18:11 PDT"]
[Termination "Game drawn by repetition"]

1. Nf3 {[%clk 0:02:26.5]} 1... Nf6 {[%clk 0:02:58.6]} 2. b3 {[%clk 0:02:28.4]}
2... g6 {[%clk 0:02:58.1]} 3. Bb2 {[%clk 0:02:30.3]} 3... Bg7 {[%clk 0:02:58.1]}
4. e3 {[%clk 0:02:32.2]} 4... d6 {[%clk 0:02:53.8]} 5. Be2 {[%clk 0:02:33]} 5...
O-O {[%clk 0:02:53.3]} 6. d4 {[%clk 0:02:32.3]} 6... Nbd7 {[%clk 0:02:49.4]} 7.
O-O {[%clk 0:02:33]} 7... b6 {[%clk 0:02:49.7]} 8. c4 {[%clk 0:02:33.2]} 8...
Bb7 {[%clk 0:02:49.2]} 9. Nc3 {[%clk 0:02:34.1]} 9... e6 {[%clk 0:02:48.5]} 10.
Qc2 {[%clk 0:02:34.3]} 10... a6 {[%clk 0:02:46.3]} 11. Rfd1 {[%clk 0:02:35.2]}
11... c5 {[%clk 0:02:44.7]} 12. dxc5 {[%clk 0:02:34.7]} 12... Nxc5 {[%clk
0:02:44.4]} 13. b4 {[%clk 0:02:30.2]} 13... Nce4 {[%clk 0:02:43.3]} 14. Nxe4
{[%clk 0:02:31]} 14... Nxe4 {[%clk 0:02:43.1]} 15. Bxg7 {[%clk 0:02:29.3]} 15...
Kxg7 {[%clk 0:02:45]} 16. Nd2 {[%clk 0:02:24.8]} 16... Nxd2 {[%clk 0:02:44.2]}
17. Qxd2 {[%clk 0:02:25.8]} 17... Qg5 {[%clk 0:02:40.4]} 18. e4 {[%clk
0:02:19.2]} 18... Qxd2 {[%clk 0:02:38]} 19. Rxd2 {[%clk 0:02:21.1]} 19... Rfd8
{[%clk 0:02:37.3]} 20. Rad1 {[%clk 0:02:21]} 20... Bxe4 {[%clk 0:02:19.5]} 21.
Rxd6 {[%clk 0:02:20.9]} 21... Rxd6 {[%clk 0:02:21.4]} 22. Rxd6 {[%clk
0:02:21.3]} 22... Rb8 {[%clk 0:02:22.7]} 23. f3 {[%clk 0:02:13.2]} 23... Bb1
{[%clk 0:02:18.5]} 24. a3 {[%clk 0:02:11.8]} 24... a5 {[%clk 0:02:19.6]} 25.
bxa5 {[%clk 0:02:05.4]} 25... bxa5 {[%clk 0:02:21.5]} 26. c5 {[%clk 0:02:04.2]}
26... Rb2 {[%clk 0:02:19.2]} 27. Kf1 {[%clk 0:01:53.3]} 27... Rc2 {[%clk
0:02:16.4]} 28. c6 {[%clk 0:01:42.7]} 28... Kf6 {[%clk 0:02:00]} 29. Bb5 {[%clk
0:01:43]} 29... Ba2 {[%clk 0:01:57.3]} 30. Ke1 {[%clk 0:01:20.3]} 30... Bd5
{[%clk 0:01:54.5]} 31. Kd1 {[%clk 0:01:18.4]} 31... Rc5 {[%clk 0:01:55.4]} 32.
a4 {[%clk 0:01:17.5]} 32... Ke7 {[%clk 0:01:52.1]} 33. Rd7+ {[%clk 0:01:18]}
33... Kf6 {[%clk 0:01:53.3]} 34. Rc7 {[%clk 0:01:17.3]} 34... h5 {[%clk
0:01:49.7]} 35. Kd2 {[%clk 0:01:17.5]} 35... g5 {[%clk 0:01:48.8]} 36. Kd3
{[%clk 0:01:12.6]} 36... h4 {[%clk 0:01:48.5]} 37. Kd4 {[%clk 0:01:08.5]} 37...
Rc2 {[%clk 0:01:43.5]} 38. Kd3 {[%clk 0:01:08.8]} 38... Rc5 {[%clk 0:01:41.2]}
39. Ke3 {[%clk 0:01:07.7]} 39... Rc2 {[%clk 0:01:40.4]} 40. Kd3 {[%clk
0:01:00.7]} 40... Rc1 {[%clk 0:01:40.2]} 41. Rc8 {[%clk 0:01:00.5]} 41... Ke7
{[%clk 0:01:35.9]} 42. Kd2 {[%clk 0:00:57.2]} 42... Rc5 {[%clk 0:01:34.1]} 43.
Ke3 {[%clk 0:00:57.3]} 43... Kd6 {[%clk 0:01:33.3]} 44. Rd8+ {[%clk 0:00:56.2]}
44... Ke5 {[%clk 0:01:33.4]} 45. Rc8 {[%clk 0:00:52.6]} 45... Kd6 {[%clk
0:01:27.7]} 46. Ra8 {[%clk 0:00:49.6]} 46... Bxc6 {[%clk 0:01:24.9]} 47. Ra6
{[%clk 0:00:50.6]} 47... f5 {[%clk 0:01:24.5]} 48. g3 {[%clk 0:00:34.3]} 48...
hxg3 {[%clk 0:01:21.9]} 49. hxg3 {[%clk 0:00:36.2]} 49... Kc7 {[%clk 0:01:21.7]}
50. Bxc6 {[%clk 0:00:34.5]} 50... Rxc6 {[%clk 0:01:23.6]} 51. Rxa5 {[%clk
0:00:35.7]} 51... Rc3+ {[%clk 0:01:22.9]} 52. Ke2 {[%clk 0:00:35.6]} 52... Rc2+
{[%clk 0:01:21.2]} 53. Kf1 {[%clk 0:00:32.9]} 53... Rc1+ {[%clk 0:01:21.8]} 54.
Kf2 {[%clk 0:00:34]} 54... Rc2+ {[%clk 0:01:21.9]} 55. Kf1 {[%clk 0:00:35.1]}
55... Rc3 {[%clk 0:01:18.5]} 56. Kg2 {[%clk 0:00:35.9]} 56... Rc2+ {[%clk
0:01:17.4]} 57. Kf1 {[%clk 0:00:34.6]} 57... Rc3 {[%clk 0:01:15.2]} 58. Kg2
{[%clk 0:00:35.1]} 58... Rc4 {[%clk 0:01:13.3]} 59. Ra7+ {[%clk 0:00:34.7]}
59... Kd6 {[%clk 0:01:12.7]} 60. a5 {[%clk 0:00:35.8]} 60... Rc2+ {[%clk
0:01:12.4]} 61. Kh3 {[%clk 0:00:36.3]} 61... Rf2 {[%clk 0:01:11.3]} 62. Rg7
{[%clk 0:00:23.8]} 62... Rxf3 {[%clk 0:01:06.9]} 63. a6 {[%clk 0:00:21.5]} 63...
Ra3 {[%clk 0:01:02.6]} 64. a7 {[%clk 0:00:22.6]} 64... Ke5 {[%clk 0:01:01.4]}
65. Rxg5 {[%clk 0:00:22.9]} 65... Rxa7 {[%clk 0:01:00.4]} 66. Rg8 {[%clk
0:00:24.4]} 66... Ra2 {[%clk 0:00:58.6]} 67. Rb8 {[%clk 0:00:24.1]} 67... Ra3
{[%clk 0:00:59.4]} 68. Rb5+ {[%clk 0:00:24.9]} 68... Kf6 {[%clk 0:01:00.8]} 69.
Rb4 {[%clk 0:00:23]} 69... Rd3 {[%clk 0:00:57.9]} 70. Ra4 {[%clk 0:00:23.8]}
70... Rc3 {[%clk 0:00:59]} 71. Rb4 {[%clk 0:00:24.9]} 71... Re3 {[%clk
0:00:59.5]} 72. Ra4 {[%clk 0:00:26.1]} 72... Kg5 {[%clk 0:00:59.3]} 73. Rh4
{[%clk 0:00:24.8]} 73... Re4 {[%clk 0:00:54.9]} 74. Rh8 {[%clk 0:00:24.6]} 74...
Re3 {[%clk 0:00:54.5]} 75. Rg8+ {[%clk 0:00:25.2]} 75... Kf6 {[%clk 0:00:56]}
76. Kg2 {[%clk 0:00:26.3]} 76... Rd3 {[%clk 0:00:53.6]} 77. Rf8+ {[%clk
0:00:26.8]} 77... Kg7 {[%clk 0:00:54.4]} 78. Ra8 {[%clk 0:00:28.7]} 78... Kf7
{[%clk 0:00:55.5]} 79. Ra7+ {[%clk 0:00:29.8]} 79... Kg6 {[%clk 0:00:56.5]} 80.
Ra8 {[%clk 0:00:31.7]} 80... Kf6 {[%clk 0:00:56.3]} 81. Rf8+ {[%clk 0:00:32.4]}
81... Ke5 {[%clk 0:00:57.8]} 82. Ra8 {[%clk 0:00:34.3]} 82... Ke4 {[%clk
0:00:58.6]} 83. Ra4+ {[%clk 0:00:34.7]} 83... Rd4 {[%clk 0:00:59.3]} 84. Ra3
{[%clk 0:00:36]} 84... Rd2+ {[%clk 0:01:00.2]} 85. Kh3 {[%clk 0:00:36.7]} 85...
Ke5 {[%clk 0:01:01.1]} 86. Re3+ {[%clk 0:00:36.4]} 86... Kf6 {[%clk 0:01:01.6]}
87. Ra3 {[%clk 0:00:38.3]} 87... Kg5 {[%clk 0:01:01.7]} 88. Ra5 {[%clk
0:00:37.6]} 88... Re2 {[%clk 0:01:01.5]} 89. Rb5 {[%clk 0:00:37]} 89... e5
{[%clk 0:01:02.6]} 90. Rb8 {[%clk 0:00:37.1]} 90... Kf6 {[%clk 0:00:52.9]} 91.
Rb6+ {[%clk 0:00:36.2]} 91... Kg5 {[%clk 0:00:53.7]} 92. Rb8 {[%clk 0:00:35.4]}
92... e4 {[%clk 0:00:46.7]} 93. Rb6 {[%clk 0:00:36.1]} 93... Rd2 {[%clk
0:00:45.8]} 94. Ra6 {[%clk 0:00:36.8]} 94... Re2 {[%clk 0:00:45.9]} 95. Rb6
{[%clk 0:00:37.3]} 95... Re1 {[%clk 0:00:46.8]} 96. Kg2 {[%clk 0:00:37.2]} 96...
Re2+ {[%clk 0:00:47.9]} 97. Kh3 {[%clk 0:00:37.9]} 97... Ra2 {[%clk 0:00:49.4]}
98. Re6 {[%clk 0:00:37.5]} 98... Ra1 {[%clk 0:00:48]} 99. Rb6 {[%clk 0:00:35.6]}
99... Ra2 {[%clk 0:00:43.9]} 100. Re6 {[%clk 0:00:35.5]} 100... Rf2 {[%clk
0:00:44.4]} 101. Re8 {[%clk 0:00:30.3]} 101... Rf3 {[%clk 0:00:45]} 102. Kg2
{[%clk 0:00:29.9]} 102... Rd3 {[%clk 0:00:42.6]} 103. Re6 {[%clk 0:00:30.7]}
103... Rd2+ {[%clk 0:00:43]} 104. Kh3 {[%clk 0:00:31]} 104... Rc2 {[%clk
0:00:42]} 105. Ra6 {[%clk 0:00:31.3]} 105... Rc3 {[%clk 0:00:42.8]} 106. Kg2
{[%clk 0:00:28.4]} 106... Rb3 {[%clk 0:00:43.2]} 107. Rc6 {[%clk 0:00:27.5]}
107... Rb2+ {[%clk 0:00:40.1]} 108. Kh3 {[%clk 0:00:27.5]} 108... Rf2 {[%clk
0:00:39.6]} 109. Re6 {[%clk 0:00:26.7]} 109... Kh5 {[%clk 0:00:36.7]} 110. Re5
{[%clk 0:00:26]} 110... Kg6 {[%clk 0:00:34.9]} 111. Re6+ {[%clk 0:00:25.8]}
111... Kf7 {[%clk 0:00:35.8]} 112. Ra6 {[%clk 0:00:26.3]} 112... e3 {[%clk
0:00:28.6]} 113. Ra3 {[%clk 0:00:26.9]} 113... e2 {[%clk 0:00:29.5]} 114. Re3
{[%clk 0:00:27]} 114... Kf6 {[%clk 0:00:29.7]} 115. Re8 {[%clk 0:00:19.5]}
115... Kf7 {[%clk 0:00:30]} 116. Re5 {[%clk 0:00:20.3]} 116... Kf6 {[%clk
0:00:30.6]} 117. Re8 {[%clk 0:00:21.2]} 117... Kg5 {[%clk 0:00:30.7]} 118. Rg8+
{[%clk 0:00:21.4]} 118... Kh6 {[%clk 0:00:30.3]} 119. Re8 {[%clk 0:00:23.3]}
119... Kg7 {[%clk 0:00:31.2]} 120. Re6 {[%clk 0:00:24.1]} 120... Kf7 {[%clk
0:00:30.5]} 121. Re5 {[%clk 0:00:25.2]} 121... Kf6 {[%clk 0:00:26.3]} 122. Re8
{[%clk 0:00:26]} 122... Kg6 {[%clk 0:00:15.8]} 123. Re6+ {[%clk 0:00:26.1]}
123... Kg5 {[%clk 0:00:17.1]} 124. Re8 {[%clk 0:00:26]} 124... Kh6 {[%clk
0:00:15.8]} 125. Re6+ {[%clk 0:00:25.8]} 125... Kh7 {[%clk 0:00:16.7]} 126. Kh4
{[%clk 0:00:23.5]} 126... Kg7 {[%clk 0:00:13.4]} 127. Kg5 {[%clk 0:00:23.6]}
127... Kf7 {[%clk 0:00:14.7]} 128. Re5 {[%clk 0:00:24.5]} 128... Rg2 {[%clk
0:00:12.3]} 129. Kf4 {[%clk 0:00:21.8]} 129... Rf2+ {[%clk 0:00:12.7]} 130. Kg5
{[%clk 0:00:23]} 130... Rg2 {[%clk 0:00:13.7]} 131. Kf4 {[%clk 0:00:22]} 131...
Kg6 {[%clk 0:00:09.6]} 132. Re6+ {[%clk 0:00:21.4]} 132... Kf7 {[%clk
0:00:10.7]} 133. Re5 {[%clk 0:00:22.2]} 133... Rf2+ {[%clk 0:00:11.8]} 134. Kg5
{[%clk 0:00:22.7]} 134... Rf3 {[%clk 0:00:10.7]} 135. Kh4 {[%clk 0:00:20.4]}
135... Kf6 {[%clk 0:00:11.2]} 136. Rxe2 {[%clk 0:00:20.5]} 136... Rf1 {[%clk
0:00:12]} 137. Kh3 {[%clk 0:00:20.5]} 137... Kg5 {[%clk 0:00:12.2]} 138. Ra2
{[%clk 0:00:20.6]} 138... Rh1+ {[%clk 0:00:12.6]} 139. Kg2 {[%clk 0:00:21.7]}
139... Re1 {[%clk 0:00:13.9]} 140. Ra8 {[%clk 0:00:23]} 140... Re4 {[%clk
0:00:14.7]} 141. Kf3 {[%clk 0:00:23.5]} 141... Rg4 {[%clk 0:00:14.7]} 142. Rg8+
{[%clk 0:00:24.6]} 142... Kf6 {[%clk 0:00:14.9]} 143. Rxg4 {[%clk 0:00:25.1]}
143... fxg4+ {[%clk 0:00:16.8]} 144. Kf4 {[%clk 0:00:26.4]} 144... Kf7 {[%clk
0:00:13.9]} 145. Kf5 {[%clk 0:00:27.2]} 145... Kg7 {[%clk 0:00:08.1]} 146. Kg5
{[%clk 0:00:28.6]} 146... Kf7 {[%clk 0:00:09.2]} 147. Kh6 {[%clk 0:00:30]}
147... Kf6 {[%clk 0:00:07.3]} 148. Kh5 {[%clk 0:00:31.9]} 148... Kg7 {[%clk
0:00:08.4]} 149. Kxg4 {[%clk 0:00:33.3]} 149... Kg6 {[%clk 0:00:09.7]} 150. Kf4
{[%clk 0:00:34.6]} 150... Kf6 {[%clk 0:00:11]} 151. Kf3 {[%clk 0:00:35.7]}
151... Kf5 {[%clk 0:00:11.5]} 152. Kg2 {[%clk 0:00:36.9]} 152... Kg6 {[%clk
0:00:12.3]} 153. Kh3 {[%clk 0:00:38.8]} 153... Kh5 {[%clk 0:00:13.5]} 154. Kg2
{[%clk 0:00:39.5]} 154... Kg4 {[%clk 0:00:14.1]} 155. Kf2 {[%clk 0:00:41.4]}
155... Kg5 {[%clk 0:00:15]} 156. Kf3 {[%clk 0:00:43.3]} 156... Kf5 {[%clk
0:00:16.4]} 157. g4+ {[%clk 0:00:44.4]} 157... Kg6 {[%clk 0:00:17.3]} 158. Kg3
{[%clk 0:00:46.3]} 158... Kg5 {[%clk 0:00:18.5]} 159. Kf3 {[%clk 0:00:47.1]}
159... Kg6 {[%clk 0:00:19.5]} 160. Kf4 {[%clk 0:00:49]} 160... Kf6 {[%clk
0:00:20.8]} 161. g5+ {[%clk 0:00:49.9]} 161... Kg7 {[%clk 0:00:21.6]} 162. Kg4
{[%clk 0:00:51.8]} 162... Kg6 {[%clk 0:00:22.9]} 163. Kh4 {[%clk 0:00:53.7]}
163... Kg7 {[%clk 0:00:23.5]} 164. Kh5 {[%clk 0:00:55.6]} 164... Kh7 {[%clk
0:00:25]} 165. Kg4 {[%clk 0:00:57.5]} 165... Kg7 {[%clk 0:00:25.7]} 166. Kf4
{[%clk 0:00:59.4]} 166... Kg6 {[%clk 0:00:22.3]} 167. Kg4 {[%clk 0:01:00.4]}
167... Kg7 {[%clk 0:00:23.4]} 168. Kf5 {[%clk 0:01:02.3]} 168... Kf7 {[%clk
0:00:24.4]} 169. Kf4 {[%clk 0:01:04.2]} 169... Kg7 {[%clk 0:00:25]} 170. Kg4
{[%clk 0:01:06.1]} 170... Kg6 {[%clk 0:00:25.8]} 171. Kf4 {[%clk 0:01:06.8]}
171... Kg7 {[%clk 0:00:26.8]} 172. Kf5 {[%clk 0:01:08.7]} 172... Kf7 {[%clk
0:00:27.9]} 173. g6+ {[%clk 0:01:10.6]} 173... Kg8 {[%clk 0:00:27.4]} 174. Kg5
{[%clk 0:01:12.5]} 174... Kg7 {[%clk 0:00:28.6]} 175. Kf5 {[%clk 0:01:13.5]}
175... Kg8 {[%clk 0:00:28.2]} 176. Ke6 {[%clk 0:01:15.4]} 176... Kg7 {[%clk
0:00:28.3]} 177. Kf5 {[%clk 0:01:16.8]} 177... Kg8 {[%clk 0:00:29.5]} 178. Kf6
{[%clk 0:01:18.7]} 178... Kf8 {[%clk 0:00:30.1]} 179. Kg5 {[%clk 0:01:20.6]}
179... Kg7 {[%clk 0:00:31.1]} 180. Kh5 {[%clk 0:01:21.7]} 180... Kg8 {[%clk
0:00:31.8]} 181. Kg4 {[%clk 0:01:23.6]} 181... Kg7 {[%clk 0:00:31.4]} 182. Kf5
{[%clk 0:01:25.5]} 182... Kg8 {[%clk 0:00:32.6]} 183. Ke6 {[%clk 0:01:27.2]}
183... Kg7 {[%clk 0:00:33.6]} 184. Kf5 {[%clk 0:01:28.4]} 184... Kg8 {[%clk
0:00:34.5]} 1/2-1/2

[Event "*** Titled Tuesday Blitz"]
[Site "Chess.com"]
[Date "2019.05.07"]
[Round "6"]
[White "HouseOfDurin"]
[Black "GremioPrudente"]
[Result "1/2-1/2"]
[WhiteElo "1983"]
[BlackElo "2120"]
[TimeControl "180+2"]
[EndTime "14:20:29 PDT"]
[Termination "Game drawn by agreement"]

1. d4 {[%clk 0:03:01.7]} 1... d5 {[%clk 0:03:00.6]} 2. Bg5 {[%clk 0:03:02.8]}
2... c6 {[%clk 0:03:00.5]} 3. e3 {[%clk 0:03:03.4]} 3... Qb6 {[%clk 0:03:01.5]}
4. b3 {[%clk 0:03:03.9]} 4... Bf5 {[%clk 0:02:59.9]} 5. Bd3 {[%clk 0:03:04.4]}
5... Bxd3 {[%clk 0:02:59.7]} 6. Qxd3 {[%clk 0:03:06.3]} 6... Nd7 {[%clk
0:03:00.5]} 7. Nf3 {[%clk 0:03:02.6]} 7... Ngf6 {[%clk 0:03:01.3]} 8. Nbd2
{[%clk 0:02:55.8]} 8... e6 {[%clk 0:03:02.1]} 9. O-O {[%clk 0:02:49.5]} 9... h6
{[%clk 0:03:01.4]} 10. Bxf6 {[%clk 0:02:39.5]} 10... Nxf6 {[%clk 0:03:01.7]} 11.
e4 {[%clk 0:02:40.8]} 11... dxe4 {[%clk 0:03:02]} 12. Nxe4 {[%clk 0:02:42.7]}
12... Be7 {[%clk 0:02:58.1]} 13. c4 {[%clk 0:02:39.3]} 13... O-O {[%clk
0:02:56.8]} 14. Rad1 {[%clk 0:02:29.6]} 14... Rad8 {[%clk 0:02:57.6]} 1/2-1/2

[Event "*** Titled Tuesday Blitz"]
[Site "Chess.com"]
[Date "2019.05.07"]
[Round "6"]
[White "checkmatequen"]
[Black "saraswathii"]
[Result "1-0"]
[WhiteElo "2211"]
[BlackElo "2267"]
[TimeControl "180+2"]
[EndTime "14:20:40 PDT"]
[Termination "checkmatequen won by resignation"]

1. e4 {[%clk 0:03:01.7]} 1... c5 {[%clk 0:03:00]} 2. Nf3 {[%clk 0:03:01.9]} 2...
e6 {[%clk 0:03:01.1]} 3. d4 {[%clk 0:03:02.6]} 3... cxd4 {[%clk 0:03:01.8]} 4.
Nxd4 {[%clk 0:03:04.5]} 4... Nf6 {[%clk 0:03:03.4]} 5. Bd3 {[%clk 0:03:05.2]}
5... Nc6 {[%clk 0:03:04.5]} 6. Nxc6 {[%clk 0:03:06.2]} 6... bxc6 {[%clk
0:03:06.4]} 7. O-O {[%clk 0:03:07]} 7... Bc5 {[%clk 0:03:07.5]} 8. e5 {[%clk
0:03:03.4]} 8... Nd5 {[%clk 0:03:07.2]} 9. Qg4 {[%clk 0:03:04.6]} 9... Kf8
{[%clk 0:03:06.2]} 10. a3 {[%clk 0:03:03.7]} 10... d6 {[%clk 0:03:03.3]} 11. c4
{[%clk 0:03:03.5]} 11... f5 {[%clk 0:02:46.2]} 12. Qg3 {[%clk 0:02:58.9]} 12...
Bd4 {[%clk 0:02:43.6]} 13. cxd5 {[%clk 0:02:55.5]} 13... Bxe5 {[%clk 0:02:39.5]}
14. Bf4 {[%clk 0:02:55.4]} 14... Bxf4 {[%clk 0:02:37.6]} 15. Qxf4 {[%clk
0:02:57.3]} 15... cxd5 {[%clk 0:02:39.1]} 16. Qg3 {[%clk 0:02:43.6]} 16... Qe7
{[%clk 0:02:39]} 17. Nc3 {[%clk 0:02:44]} 17... Bb7 {[%clk 0:02:39.3]} 18. Rfe1
{[%clk 0:02:43.1]} 18... a6 {[%clk 0:02:39]} 19. Bxf5 {[%clk 0:02:43.4]} 1-0

[Event "*** Titled Tuesday Blitz"]
[Site "Chess.com"]
[Date "2019.05.07"]
[Round "6"]
[White "IIIlllII1llIl"]
[Black "Zq1"]
[Result "1-0"]
[WhiteElo "2731"]
[BlackElo "2502"]
[TimeControl "180+2"]
[EndTime "14:21:39 PDT"]
[Termination "IIIlllII1llIl won by resignation"]

1. e4 {[%clk 0:03:01.9]} 1... c5 {[%clk 0:03:00.6]} 2. c3 {[%clk 0:03:02.2]}
2... d5 {[%clk 0:03:00.7]} 3. exd5 {[%clk 0:03:04.1]} 3... Qxd5 {[%clk
0:03:01.5]} 4. d4 {[%clk 0:03:05.2]} 4... Nc6 {[%clk 0:03:01]} 5. Nf3 {[%clk
0:03:05.8]} 5... Bf5 {[%clk 0:03:01.9]} 6. Be2 {[%clk 0:03:06.2]} 6... cxd4
{[%clk 0:02:57.1]} 7. cxd4 {[%clk 0:03:08.1]} 7... Bxb1 {[%clk 0:02:57.3]} 8.
Rxb1 {[%clk 0:03:10]} 8... e6 {[%clk 0:02:57.7]} 9. O-O {[%clk 0:03:10.6]} 9...
Nf6 {[%clk 0:02:57.4]} 10. b4 {[%clk 0:03:10.2]} 10... Bxb4 {[%clk 0:02:48.9]}
11. Ne5 {[%clk 0:03:08.1]} 11... Nxe5 {[%clk 0:02:32.4]} 12. dxe5 {[%clk
0:03:07.7]} 12... Qxd1 {[%clk 0:02:32.6]} 13. Rxd1 {[%clk 0:03:03.8]} 13... Nd5
{[%clk 0:02:31]} 14. Rxd5 {[%clk 0:03:03.4]} 14... exd5 {[%clk 0:02:31.4]} 15.
Rxb4 {[%clk 0:03:04.3]} 15... O-O-O {[%clk 0:02:31.9]} 16. Bf4 {[%clk
0:02:47.5]} 16... h5 {[%clk 0:01:59.6]} 17. g4 {[%clk 0:02:45.5]} 17... d4
{[%clk 0:01:56]} 18. gxh5 {[%clk 0:02:45.7]} 18... d3 {[%clk 0:01:54.7]} 19.
Bg4+ {[%clk 0:02:46.7]} 19... Kb8 {[%clk 0:01:48.4]} 20. e6+ {[%clk 0:02:44.7]}
20... Ka8 {[%clk 0:01:49.2]} 21. Bf3 {[%clk 0:02:44.3]} 1-0

[Event "*** Titled Tuesday Blitz"]
[Site "Chess.com"]
[Date "2019.05.07"]
[Round "6"]
[White "Szparu"]
[Black "enriquetejedor"]
[Result "1-0"]
[WhiteElo "2526"]
[BlackElo "2556"]
[TimeControl "180+2"]
[EndTime "14:22:15 PDT"]
[Termination "Szparu won by resignation"]

1. e4 {[%clk 0:03:01.9]} 1... c5 {[%clk 0:02:59]} 2. Nf3 {[%clk 0:03:02.4]} 2...
d6 {[%clk 0:02:59.3]} 3. d4 {[%clk 0:03:02.9]} 3... cxd4 {[%clk 0:03:01.2]} 4.
Qxd4 {[%clk 0:03:04.7]} 4... a6 {[%clk 0:02:58.5]} 5. c4 {[%clk 0:03:03.1]} 5...
Nc6 {[%clk 0:02:59.5]} 6. Qe3 {[%clk 0:02:59.2]} 6... g6 {[%clk 0:02:59]} 7. Nc3
{[%clk 0:02:59.6]} 7... Bg7 {[%clk 0:02:59.3]} 8. Be2 {[%clk 0:03:01.2]} 8...
Nf6 {[%clk 0:02:59.4]} 9. h3 {[%clk 0:03:02.3]} 9... O-O {[%clk 0:03:00.3]} 10.
O-O {[%clk 0:03:03.3]} 10... Nd7 {[%clk 0:03:00.8]} 11. b3 {[%clk 0:03:01]}
11... Nc5 {[%clk 0:02:53.1]} 12. Bb2 {[%clk 0:03:01.9]} 12... Bd7 {[%clk
0:02:47.1]} 13. Rfd1 {[%clk 0:03:01.9]} 13... Rb8 {[%clk 0:02:44.7]} 14. Rac1
{[%clk 0:03:00.3]} 14... Kh8 {[%clk 0:02:32.5]} 15. Ba1 {[%clk 0:02:59.9]} 15...
Rc8 {[%clk 0:02:29]} 16. Nd5 {[%clk 0:02:59.9]} 16... Bxa1 {[%clk 0:02:28.9]}
17. Rxa1 {[%clk 0:03:01.8]} 17... Kg8 {[%clk 0:02:28.6]} 18. e5 {[%clk
0:02:53.5]} 18... Ne6 {[%clk 0:02:24.9]} 19. exd6 {[%clk 0:02:50.7]} 19... exd6
{[%clk 0:02:25.6]} 20. Nb6 {[%clk 0:02:48.6]} 20... Ncd4 {[%clk 0:02:22.4]} 21.
Nxc8 {[%clk 0:02:39.7]} 21... Nxe2+ {[%clk 0:02:21.4]} 22. Qxe2 {[%clk
0:02:38.6]} 22... Qxc8 {[%clk 0:02:22.9]} 23. Rxd6 {[%clk 0:02:38]} 23... Bc6
{[%clk 0:02:22.8]} 24. Qe3 {[%clk 0:02:27]} 24... Re8 {[%clk 0:02:20.3]} 25. Re1
{[%clk 0:02:20.5]} 25... Qc7 {[%clk 0:02:13.3]} 26. c5 {[%clk 0:02:07.8]} 26...
Nxc5 {[%clk 0:02:13.6]} 27. Rxc6 {[%clk 0:02:06.4]} 1-0

[Event "*** Titled Tuesday Blitz"]
[Site "Chess.com"]
[Date "2019.05.07"]
[Round "6"]
[White "Caisachess"]
[Black "tomozupan"]
[Result "1-0"]
[WhiteElo "2339"]
[BlackElo "2272"]
[TimeControl "180+2"]
[EndTime "14:22:16 PDT"]
[Termination "Caisachess won by resignation"]

1. e4 {[%clk 0:03:01.9]} 1... e5 {[%clk 0:02:59.9]} 2. Nf3 {[%clk 0:03:02.7]}
2... Nc6 {[%clk 0:03:00.7]} 3. Bc4 {[%clk 0:03:04.2]} 3... Bc5 {[%clk
0:02:59.6]} 4. O-O {[%clk 0:03:00.4]} 4... Nf6 {[%clk 0:03:00.1]} 5. d4 {[%clk
0:03:02]} 5... Bxd4 {[%clk 0:02:55.8]} 6. Nxd4 {[%clk 0:03:02.8]} 6... Nxd4
{[%clk 0:02:49.4]} 7. f4 {[%clk 0:03:03.5]} 7... Nc6 {[%clk 0:02:37.6]} 8. fxe5
{[%clk 0:02:50.7]} 8... Nxe5 {[%clk 0:02:38.2]} 9. Bb3 {[%clk 0:02:51.1]} 9...
d6 {[%clk 0:02:36.1]} 10. Bg5 {[%clk 0:02:51.6]} 10... Ned7 {[%clk 0:02:36.6]}
11. Nc3 {[%clk 0:02:46.4]} 11... h6 {[%clk 0:02:36.3]} 12. Bh4 {[%clk 0:02:47]}
12... g5 {[%clk 0:02:23.7]} 13. Bg3 {[%clk 0:02:44.6]} 13... Nc5 {[%clk
0:02:16.4]} 14. e5 {[%clk 0:02:41.2]} 14... Nxb3 {[%clk 0:02:08.3]} 15. axb3
{[%clk 0:02:39.6]} 15... Bg4 {[%clk 0:01:40.6]} 16. Qd4 {[%clk 0:02:36]} 16...
dxe5 {[%clk 0:01:29.1]} 17. Qxe5+ {[%clk 0:02:25.2]} 17... Qe7 {[%clk
0:01:28.2]} 18. Rxf6 {[%clk 0:02:22.5]} 1-0

[Event "*** Titled Tuesday Blitz"]
[Site "Chess.com"]
[Date "2019.05.07"]
[Round "6"]
[White "LarissaSteenbekkers"]
[Black "j_coca"]
[Result "1-0"]
[WhiteElo "1968"]
[BlackElo "1944"]
[TimeControl "180+2"]
[EndTime "14:22:22 PDT"]
[Termination "LarissaSteenbekkers won by resignation"]

1. e4 {[%clk 0:03:01.9]} 1... Nf6 {[%clk 0:03:00.2]} 2. e5 {[%clk 0:03:00.6]}
2... Nd5 {[%clk 0:02:51.8]} 3. d4 {[%clk 0:03:01.8]} 3... d6 {[%clk 0:02:51.2]}
4. Nf3 {[%clk 0:03:03.1]} 4... Bg4 {[%clk 0:02:30.1]} 5. Be2 {[%clk 0:02:58.6]}
5... e6 {[%clk 0:02:23.4]} 6. h3 {[%clk 0:02:15.4]} 6... Bf5 {[%clk 0:02:17.3]}
7. O-O {[%clk 0:02:09.1]} 7... Be7 {[%clk 0:02:15.7]} 8. c4 {[%clk 0:02:07]}
8... Nb6 {[%clk 0:02:16.5]} 9. Nc3 {[%clk 0:02:06.1]} 9... Nc6 {[%clk
0:02:16.4]} 10. exd6 {[%clk 0:01:59]} 10... cxd6 {[%clk 0:02:16.8]} 11. d5
{[%clk 0:01:58.7]} 11... Ne5 {[%clk 0:02:14.8]} 12. Nd4 {[%clk 0:01:54]} 12...
Nexc4 {[%clk 0:02:10.5]} 13. Bxc4 {[%clk 0:01:52.3]} 13... Nxc4 {[%clk
0:02:10.9]} 14. Qa4+ {[%clk 0:01:51.9]} 14... Kf8 {[%clk 0:02:11.1]} 15. Qxc4
{[%clk 0:01:52.4]} 15... Bg6 {[%clk 0:02:12.2]} 16. dxe6 {[%clk 0:01:50.8]}
16... Rc8 {[%clk 0:02:12.6]} 17. Qb3 {[%clk 0:01:49.1]} 17... Bf6 {[%clk
0:02:10.6]} 18. Be3 {[%clk 0:01:44.7]} 18... a6 {[%clk 0:02:10.1]} 19. Rad1
{[%clk 0:01:42.5]} 19... b5 {[%clk 0:02:05.8]} 20. Nd5 {[%clk 0:01:38.4]} 1-0